bitfinex-derivatives/quotes_ETHF0:USTF0_20250104
["timestamp","ask_amount","ask_price","bid_price","bid_amount"]
[1735993915846,0.27479,3640.4,3640.0,0.27481]
[1735993916040,3.2078,3640.6,3640.0,0.27481]
[1735993916243,0.27479,3640.3,3640.0,0.27481]
[1735993916745,3.2078,3640.6,3640.1,2.6186979]
[1735993917043,7.55876,3641.6,3640.5,3.48258]
[1735993917044,0.27476,3640.8,3640.5,3.48258]
[1735993917249,42.67979,3641.4,3640.5,3.2078]
[1735993917549,0.27476,3640.8,3640.5,3.2078]
[1735993917743,0.27476,3640.8,3640.6,0.27477]
[1735993917948,0.27476,3640.8,3640.5,3.48258]
[1735993918148,1.2219,3641.3,3640.5,3.2078]
[1735993918337,1.2219,3641.3,3640.6,2.4648]
[1735993918543,0.27476,3640.7,3640.6,2.4648]
[1735993918744,0.27476,3640.8,3640.6,2.4648]
[1735993919049,1.2219,3641.3,3640.6,2.4648]
[1735993919247,3.3055779,3640.9,3639.9,3.2078]
[1735993919451,0.27482,3640.0,3639.9,3.2078]
[1735993920249,0.27478,3640.5,3640.2,0.2748]
[1735993920451,1.193,3641.1,3640.4,3.2078]
[1735993920656,0.27474,3641.0,3640.4,3.2078]
[1735993920950,3.8405979,3641.3,3640.4,3.2078]
[1735993920951,0.27478,3640.5,3640.4,3.2078]
[1735993921540,0.27478,3640.6,3640.4,3.2078]
[1735993921752,0.27477,3640.7,3640.4,3.48259]
[1735993921952,0.27477,3640.7,3640.4,3.48258]
[1735993922156,0.27477,3640.7,3640.4,3.2078]
[1735993922454,0.27478,3640.6,3640.4,3.2078]
[1735993922646,0.27478,3640.5,3640.4,3.2078]
[1735993924252,0.27482,3639.9,3639.8,1.2575]
[1735993924652,1.88557,3640.4,3639.8,4.74013]
[1735993924653,0.27402,3640.0,3639.8,4.74013]
[1735993924856,3.5513,3640.4,3639.8,4.74013]
[1735993925049,0.27482,3640.0,3639.8,4.74013]
[1735993925255,0.27479,3640.3,3639.8,4.4653]
[1735993925453,0.27479,3640.3,3640.2,3.2078]
[1735993925648,1.193,3640.4,3639.9,1.1788]
[1735993925853,0.27479,3640.3,3640.1,0.27481]
[1735993926048,0.27478,3640.5,3640.3,0.27479]
[1735993926251,3.2078,3641.2,3640.2,3.2078]
[1735993926449,0.27478,3640.6,3640.5,0.27478]
[1735993926651,3.2078,3642.2,3640.5,10.8264979]
[1735993926858,0.2747,3641.6,3641.5,3.4825]
[1735993927059,6.8352,3642.6,3641.5,3.2078]
[1735993927250,0.27467,3642.0,3641.5,3.2078]
[1735993927451,0.27468,3641.8,3641.5,3.2078]
[1735993927757,6.8352,3642.6,3641.5,3.2078]
[1735993927758,0.27468,3641.9,3641.5,3.2078]
[1735993928057,9.4538979,3642.6,3641.5,3.2078]
[1735993928058,0.68661,3642.3,3641.5,3.2078]
[1735993928257,0.27469,3641.7,3641.5,3.2078]
[1735993928454,0.27469,3641.7,3641.5,3.4825]
[1735993928654,1.193,3642.5,3641.7,0.27468]
[1735993928858,0.27464,3642.4,3641.5,3.4825]
[1735993929155,0.27458,3643.1,3642.3,0.27464]
[1735993929361,3.2078,3643.2,3641.8,2.6186979]
[1735993929362,0.27461,3642.8,3642.4,3.48243]
[1735993929560,4.4828,3643.2,3642.4,3.2078]
[1735993929757,4.4828,3643.2,3642.8,0.2746]
[1735993930057,1.159,3644.2,3642.2,3.8662979]
[1735993930058,0.27452,3644.0,3643.4,0.27456]
[1735993930264,0.27448,3644.4,3643.8,3.48233]
[1735993930558,3.2078,3644.6,3643.8,3.2078]
[1735993931059,0.27448,3644.4,3643.9,0.27452]
[1735993931253,1.1666,3644.7,3643.9,0.27452]
[1735993931762,0.27451,3644.1,3643.8,3.2078]
[1735993932154,2.6186979,3644.6,3643.8,3.2078]
[1735993932355,0.27452,3644.0,3643.8,3.2078]
[1735993932657,1.1666,3644.7,3643.8,3.2078]
[1735993932860,0.27452,3644.0,3643.8,3.2078]
[1735993933156,0.27452,3644.0,3643.1,1.2336]
[1735993933157,0.27458,3643.2,3643.1,1.2336]
[1735993933460,3.2078,3643.3,3642.4,1.1757]
[1735993933648,3.13745891,3643.3,3642.4,1.1757]
[1735993933849,3.13745891,3643.3,3643.0,0.27459]
[1735993934049,3.13745891,3643.3,3642.5,3.2078]
[1735993934654,3.2078,3643.1,3642.3,3.2078]
[1735993934853,0.27462,3642.7,3642.3,3.48244]
[1735993935156,3.2078,3643.1,3642.4,3.2078]
[1735993935353,0.27462,3642.6,3642.2,0.27465]
[1735993935755,0.27462,3642.6,3642.3,3.48244]
[1735993935957,0.27462,3642.6,3642.3,3.2078]
[1735993936157,0.00229416,3642.7,3642.3,3.2078]
[1735993936360,0.27691416,3642.7,3642.3,3.48244]
[1735993936756,0.27462,3642.6,3642.3,3.2078]
[1735993937164,0.00229416,3642.7,3642.3,3.48244]
[1735993937359,0.00229416,3642.7,3642.3,3.2078]
[1735993938256,0.00229416,3642.7,3642.6,0.27462]
[1735993939458,0.00229416,3642.7,3642.6,0.27542]
[1735993939763,0.00229416,3642.7,3642.6,0.0008]
[1735993940156,0.27690416,3642.7,3642.6,0.0008]
[1735993943764,3.48470416,3642.7,3642.6,0.0008]
[1735993943960,3.48470416,3642.7,3641.3,3.2078]
[1735993943961,8.21009416,3642.7,3641.3,3.2078]
[1735993944266,0.27468,3641.9,3641.6,0.27469]
[1735993944465,3.2078,3642.2,3641.8,2.6186979]
[1735993944663,0.00229416,3642.7,3641.9,4.4723]
[1735993944857,0.00229416,3642.7,3642.6,0.27462]
[1735993945061,0.27462,3642.6,3642.4,0.27463]
[1735993945465,0.27462,3642.6,3642.3,3.2078]
[1735993945672,0.27462,3642.6,3642.3,3.48244]
[1735993945971,0.00229416,3642.7,3642.3,3.2078]
[1735993946269,0.27463,3642.6,3642.3,3.48244]
[1735993946472,0.27463,3642.6,3642.4,0.27463]
[1735993946671,0.27463,3642.5,3642.3,3.48244]
[1735993947169,0.27463,3642.5,3642.3,3.2078]
[1735993947368,0.27464,3642.4,3642.3,3.2078]
[1735993947858,0.27466,3642.1,3641.9,0.27467]
[1735993948361,0.27466,3642.1,3641.7,3.2078]
[1735993948362,0.96121,3642.5,3641.7,3.2078]
[1735993948561,3.2078,3642.6,3641.7,3.2078]
[1735993948762,3.2078,3642.6,3641.8,0.27468]
[1735993948962,0.27467,3642.0,3641.8,0.27468]
[1735993949167,0.27468,3641.9,3641.6,3.48249]
[1735993949366,2.6186979,3642.5,3641.2,5.5586]
[1735993949561,1.2154,3641.8,3641.2,5.5586]
[1735993949764,1.2154,3641.8,3641.1,4.20662167]
[1735993949959,4.4103,3641.7,3641.1,4.20662167]
[1735993950168,0.27472,3641.3,3641.1,0.27473]
[1735993950673,4.4103,3641.7,3641.0,2.6186979]
[1735993950872,0.27472,3641.3,3641.1,0.27473]
[1735993951074,4.4103,3641.7,3641.0,2.6186979]
[1735993951270,0.27472,3641.4,3641.1,0.27473]
[1735993951571,0.27473,3641.2,3641.0,2.8934379]
[1735993951972,0.27472,3641.3,3641.1,0.27473]
[1735993952274,4.4103,3641.7,3641.0,2.6186979]
[1735993952464,3.2078,3641.3,3640.4,4.4559]
[1735993952669,0.27478,3640.5,3640.4,3.2078]
[1735993952870,0.27477,3640.7,3640.5,0.27478]
[1735993953064,0.68682,3641.2,3640.4,3.2078]
[1735993953370,3.2078,3640.9,3640.2,2.6186979]
[1735993953570,0.27479,3640.3,3640.2,2.6186979]
[1735993954074,3.2078,3640.9,3640.2,2.6186979]
[1735993954278,1.201,3641.4,3640.3,0.27479]
[1735993954279,0.27478,3640.6,3640.3,0.27479]
[1735993954476,0.27479,3640.4,3640.2,2.8934979]
[1735993954777,0.27479,3640.4,3640.2,6.1012979]
[1735993955174,3.2078,3641.0,3639.8,1.1623]
[1735993955382,0.27483,3639.9,3639.7,0.27484]
[1735993955872,0.27483,3639.9,3639.6,2.6186979]
[1735993955873,0.27483,3639.9,3639.6,2.8935379]
[1735993956173,0.27483,3639.9,3639.6,2.6186979]
[1735993956373,0.27482,3640.0,3639.7,0.27483]
[1735993956580,0.27483,3639.9,3639.7,0.27484]
[1735993956879,0.27482,3639.9,3639.7,0.27484]
[1735993957072,0.27482,3640.0,3639.6,2.6186979]
[1735993957278,0.27482,3640.0,3639.8,0.27483]
[1735993957572,2.4149,3640.5,3639.8,0.27483]
[1735993957773,2.4149,3640.5,3639.7,0.27484]
[1735993957974,3.2078,3640.2,3639.5,3.2078]
[1735993958274,5.0335979,3640.5,3639.0,2.3811]
[1735993958275,1.2237,3640.1,3639.0,2.3811]
[1735993958478,0.27483,3639.8,3639.5,0.27485]
[1735993958672,0.27483,3639.8,3639.4,0.27486]
[1735993958877,0.27483,3639.9,3639.3,3.2078]
[1735993959080,1.2237,3640.1,3639.3,3.2078]
[1735993959586,0.27485,3639.6,3639.3,3.48266]
[1735993960778,2.6186979,3640.0,3639.3,3.2078]
[1735993961078,0.27489,3639.0,3638.9,3.2078]
[1735993961584,3.2078,3639.5,3638.4,0.27493]
[1735993961779,0.27494,3638.4,3638.3,4.20662167]
[1735993962880,0.27494,3638.4,3638.0,3.48276]
[1735993963077,1.1266,3639.0,3638.0,3.2078]
[1735993963476,3.2078,3638.7,3638.0,3.2078]
[1735993963680,3.2078,3638.7,3638.1,0.27495]
[1735993963882,0.27494,3638.4,3638.1,0.27495]
[1735993964082,3.2078,3638.7,3638.0,3.2078]
[1735993964277,0.27496,3638.2,3638.0,3.2078]
[1735993964476,0.27496,3638.1,3638.0,3.2078]
[1735993964678,0.27495,3638.2,3638.0,3.2078]
[1735993964878,4.3981,3638.7,3638.0,3.2078]
[1735993965074,0.68731,3638.6,3637.6,3.2078]
[1735993965273,3.2078,3638.3,3637.3,2.391]
[1735993965479,0.27503,3637.2,3637.0,3.2078]
[1735993965679,4.3948,3637.9,3636.9,3.2078]
[1735993965882,0.27502,3637.3,3636.9,3.2078]
[1735993966079,0.27502,3637.4,3637.0,0.27504]
[1735993966682,4.3948,3638.5,3637.3,3.2078]
[1735993966886,0.27496,3638.1,3637.7,3.48279]
[1735993967182,0.27496,3638.1,3637.7,3.48278]
[1735993967183,0.27497,3638.1,3637.7,3.48278]
[1735993967381,0.27497,3638.0,3637.7,3.48278]
[1735993967587,3.2078,3638.5,3637.7,3.2078]
[1735993967890,0.27497,3638.0,3637.7,3.48279]
[1735993968186,3.2078,3638.5,3637.7,3.2078]
[1735993968373,0.27496,3638.1,3637.8,0.27498]
[1735993968577,0.27496,3638.1,3637.9,0.27497]
[1735993968778,0.27496,3638.1,3637.7,3.2078]
[1735993968779,0.27494,3638.4,3638.1,0.27495]
[1735993968987,3.2078,3638.5,3637.7,3.2078]
[1735993969186,0.27496,3638.2,3637.9,0.27497]
[1735993969786,3.2078,3638.5,3637.9,0.27497]
[1735993969991,3.2078,3638.5,3637.7,3.2086]
[1735993970284,0.27495,3638.2,3637.7,3.2086]
[1735993970478,0.27494,3638.4,3638.0,0.27496]
[1735993970687,3.2078,3638.5,3638.4,0.27494]
[1735993970882,3.2078,3638.5,3637.8,2.3275]
[1735993971179,3.2078,3638.5,3638.3,0.27494]
[1735993971492,3.2078,3638.5,3638.4,0.27494]
[1735993972587,2.2976,3639.1,3638.7,0.27491]
[1735993972892,0.2749,3638.9,3638.7,0.27491]
[1735993973083,0.2749,3638.9,3638.5,3.2078]
[1735993973084,1.1689,3639.1,3638.5,3.2078]
[1735993973479,0.27489,3639.0,3638.8,0.2749]
[1735993973689,1.44379,3639.1,3638.6,0.27492]
[1735993973986,0.27489,3639.0,3638.8,0.2749]
[1735993974186,1.1689,3639.1,3638.5,3.2078]
[1735993974489,1.1689,3639.1,3638.9,0.2749]
[1735993974490,1.44379,3639.1,3638.9,0.2749]
[1735993974690,1.1689,3639.1,3638.5,3.2078]
[1735993975187,0.27489,3639.0,3638.8,0.2749]
[1735993975387,0.2749,3638.9,3638.7,0.27491]
[1735993975586,0.27491,3638.8,3638.6,0.27492]
[1735993975787,1.1689,3639.1,3638.5,3.2078]
[1735993975788,0.2749,3638.9,3638.7,0.27491]
[1735993976188,0.27488,3639.2,3638.9,0.27489]
[1735993976488,4.3948,3639.5,3638.5,3.2078]
[1735993976689,4.3948,3639.5,3638.5,3.48273]
[1735993976690,0.27492,3638.7,3638.5,3.48273]
[1735993976886,2.6186979,3639.3,3638.5,3.2078]
[1735993977088,0.2749,3638.9,3638.5,3.2078]
[1735993977289,0.2749,3638.9,3638.6,0.27492]
[1735993977902,0.27492,3638.7,3638.5,3.48273]
[1735993978090,0.27492,3638.6,3638.5,3.2078]
[1735993978891,3.2078,3638.7,3638.0,3.2078]
[1735993979094,1.1893,3638.5,3638.1,0.27496]
[1735993979284,1.1893,3638.5,3638.0,3.2078]
[1735993979487,1.1893,3638.5,3637.7,0.0008]
[1735993979693,0.27497,3638.0,3637.9,0.27497]
[1735993979891,0.27496,3638.1,3637.9,0.27498]
[1735993980091,0.27497,3638.1,3637.7,0.0008]
[1735993980285,0.27497,3638.1,3638.0,0.27497]
[1735993980595,1.1893,3638.5,3637.7,0.0008]
[1735993980791,0.27495,3638.3,3638.1,0.27496]
[1735993981593,1.1893,3638.5,3637.7,0.0008]
[1735993981795,0.27494,3638.4,3638.2,0.27495]
[1735993982494,0.27496,3638.2,3638.0,0.27496]
[1735993982997,1.1893,3638.5,3638.0,0.27496]
[1735993983299,0.27495,3638.2,3638.1,0.27496]
[1735993983501,1.1893,3638.5,3637.7,0.0008]
[1735993983696,0.27496,3638.2,3637.7,0.0008]
[1735993983898,0.27496,3638.2,3638.1,0.27496]
[1735993984097,1.1893,3638.5,3638.0,0.27496]
[1735993984298,0.27496,3638.2,3638.1,0.27496]
[1735993984496,0.27498,3637.8,3637.7,0.0008]
[1735993986404,4.66978,3637.8,3637.7,0.0008]
[1735993986901,0.68748,3637.7,3636.8,3.2078]
[1735993987203,1.9021,3637.6,3636.8,3.48286]
[1735993987410,1.9021,3637.6,3636.9,0.27505]
[1735993987896,0.27506,3636.9,3636.2,3.2078]
[1735993988095,2.6186979,3637.3,3636.2,3.2078]
[1735993988297,1.2146,3637.6,3636.2,5.8264979]
[1735993988498,1.2146,3637.6,3636.8,0.27505]
[1735993988499,0.27505,3637.0,3636.8,0.27505]
[1735993988700,0.27505,3637.0,3636.2,5.8264979]
[1735993988905,3.2078,3637.4,3637.0,0.27504]
[1735993988906,0.27502,3637.3,3637.0,0.27504]
[1735993989203,3.2078,3637.4,3636.6,3.2078]
[1735993989396,1.2146,3637.6,3636.6,3.2078]
[1735993989601,0.27502,3637.3,3637.2,0.27503]
[1735993990500,0.27502,3637.4,3637.2,0.27503]
[1735993990806,1.2146,3637.6,3637.2,0.27503]
[1735993991003,1.2146,3637.6,3636.7,0.68767]
[1735993991201,3.2078,3637.8,3637.7,0.27499]
[1735993991702,3.2078,3639.9,3639.7,0.27484]
[1735993991900,2.3729,3640.5,3639.7,3.2078]
[1735993992101,0.2748,3640.2,3639.9,0.27482]
[1735993992299,0.2748,3640.3,3639.7,3.2078]
[1735993992603,0.2748,3640.3,3639.2,0.6872]
[1735993992604,1.172,3640.4,3640.2,0.2748]
[1735993992907,1.172,3640.4,3640.1,3.2078]
[1735993992908,2.12134893,3640.7,3640.1,3.2078]
[1735993993204,0.27478,3640.5,3640.1,3.48261]
[1735993993405,2.12134893,3640.7,3640.3,0.27479]
[1735993993406,0.27476,3640.7,3640.3,0.27479]
[1735993993606,4.3798,3640.9,3640.1,3.2078]
[1735993993805,0.2748,3640.2,3640.1,3.2078]
[1735993994101,0.27483,3639.8,3639.7,3.2078]
[1735993994499,0.27486,3639.5,3639.2,3.2078]
[1735993994704,0.27485,3639.6,3639.2,3.48267]
[1735993995111,1.2106,3640.1,3639.2,3.2078]
[1735993995712,1.2106,3640.1,3638.6,4.20662167]
[1735993995713,1.2106,3640.1,3639.8,0.27483]
[1735993996013,1.172,3640.5,3639.7,3.2078]
[1735993996220,0.27481,3640.2,3639.8,0.27483]
[1735993996918,0.2748,3640.3,3640.0,0.27482]
[1735993997109,0.2748,3640.2,3639.9,0.27482]
[1735993997509,0.27481,3640.1,3639.8,0.27483]
[1735993997711,0.27482,3640.0,3639.7,3.48264]
[1735993997914,0.27481,3640.2,3639.8,0.27483]
[1735993998114,0.27481,3640.2,3639.9,0.27482]
[1735993998322,1.172,3640.5,3639.7,3.2078]
[1735993998523,0.27478,3640.6,3640.3,0.27479]
[1735993998719,3.2078,3641.0,3640.2,0.2748]
[1735993999017,3.2078,3641.0,3639.7,5.8264979]
[1735993999222,0.27479,3640.4,3639.7,3.2078]
[1735993999513,0.27479,3640.4,3640.1,0.27481]
[1735993999724,4.3798,3641.0,3640.1,0.27481]
[1735993999912,4.3798,3641.0,3639.7,3.2078]
[1735994000220,2.6186979,3640.7,3640.1,3.2078]
[1735994000420,0.2748,3640.2,3640.1,3.2078]
[1735994000618,0.2748,3640.3,3640.1,3.2078]
[1735994001615,3.7906979,3640.7,3640.1,3.2078]
[1735994001816,3.7906979,3640.7,3640.2,0.2748]
[1735994001817,0.27479,3640.5,3640.2,0.2748]
[1735994002121,0.27477,3640.6,3640.2,0.2748]
[1735994002423,0.27478,3640.5,3640.2,0.2748]
[1735994002617,0.27477,3640.6,3640.3,0.27479]
[1735994003019,0.27477,3640.6,3640.1,3.2078]
[1735994003020,3.2078,3641.0,3640.1,3.2078]
[1735994003321,0.27477,3640.7,3640.4,0.27479]
[1735994003510,3.2078,3641.0,3640.1,3.2078]
[1735994003716,0.27478,3640.6,3640.1,3.2078]
[1735994003915,0.27478,3640.6,3640.3,0.27479]
[1735994004119,3.2078,3641.0,3640.1,3.2078]
[1735994004421,0.27479,3640.5,3640.1,3.2078]
[1735994004618,0.27479,3640.5,3640.1,3.48261]
[1735994005316,0.27479,3640.5,3640.1,3.2078]
[1735994005525,0.27479,3640.4,3640.1,3.4826]
[1735994005720,0.2748,3640.3,3640.1,3.2078]
[1735994006019,0.27476,3640.7,3640.1,3.48261]
[1735994006222,40.8,3640.8,3640.1,3.48261]
[1735994006223,0.27479,3640.4,3640.1,3.48261]
[1735994006422,0.27477,3640.6,3640.1,3.2078]
[1735994006612,0.27477,3640.6,3640.5,3.2078]
[1735994006816,40.8,3640.6,3640.5,3.2078]
[1735994007015,0.27477,3640.7,3640.5,3.2078]
[1735994007617,0.27477,3640.7,3640.5,3.48258]
[1735994007818,0.27477,3640.6,3640.5,3.2078]
[1735994008216,0.27475,3640.9,3640.6,0.27477]
[1735994008414,1.171,3641.1,3640.6,1.40007]
[1735994008415,0.27476,3640.8,3640.6,1.40007]
[1735994008615,0.27476,3640.7,3640.6,1.1253]
[1735994009023,3.2078,3641.4,3640.6,1.1253]
[1735994009224,0.27475,3641.0,3640.7,0.27476]
[1735994009422,3.2078,3641.4,3640.6,1.1253]
[1735994009621,0.27476,3640.7,3640.6,1.1253]
[1735994009921,0.27476,3640.8,3640.6,1.40007]
[1735994010623,3.2078,3641.4,3640.6,1.1253]
[1735994010624,0.27476,3640.7,3640.6,1.1253]
[1735994014025,1.171,3641.1,3640.5,3.2078]
[1735994014325,0.27397,3640.6,3640.5,3.2078]
[1735994014629,1.85784,3641.1,3640.2,0.2748]
[1735994014630,1.2301,3641.0,3640.2,0.2748]
[1735994014827,0.27479,3640.4,3640.2,0.2748]
[1735994015027,0.27479,3640.4,3640.3,3.2078]
[1735994015430,0.27478,3640.5,3640.3,3.48259]
[1735994015632,0.27479,3640.4,3640.3,3.2078]
[1735994015824,1.1897,3640.9,3640.3,3.2078]
[1735994015825,1.1897,3640.9,3640.3,3.48259]
[1735994016024,0.27478,3640.5,3640.3,3.48259]
[1735994016221,1.1897,3640.9,3640.3,3.2078]
[1735994016222,0.27479,3640.4,3640.3,3.2078]
[1735994016525,1.1897,3640.9,3640.3,3.2078]
[1735994016727,0.2748,3640.2,3640.1,0.27481]
[1735994017032,0.27479,3640.4,3640.3,0.27479]
[1735994017532,0.27479,3640.3,3640.2,0.2748]
[1735994018128,0.27479,3640.4,3640.2,0.2748]
[1735994018329,1.1897,3640.9,3640.1,3.2078]
[1735994018635,0.27479,3640.3,3640.2,0.2748]
[1735994018825,0.27479,3640.3,3640.2,3.4826]
[1735994019033,1.87658,3640.9,3640.2,3.4826]
[1735994019222,2.3607,3640.9,3640.2,3.2078]
[1735994019533,0.27479,3640.4,3640.3,0.27479]
[1735994020028,0.27478,3640.5,3640.4,0.27479]
[1735994020229,1.1897,3640.9,3640.3,2.20824146]
[1735994020433,0.27477,3640.7,3640.5,3.2078]
[1735994020633,0.27477,3640.7,3640.6,0.27477]
[1735994020928,1.1897,3640.9,3640.5,3.2078]
[1735994020929,0.27477,3640.6,3640.5,3.48258]
[1735994021431,0.27477,3640.7,3640.6,0.27477]
[1735994021822,0.27477,3640.6,3640.5,3.48258]
[1735994022536,0.27477,3640.7,3640.6,0.27477]
[1735994022930,1.1897,3640.9,3640.5,3.48258]
[1735994023229,0.27477,3640.7,3640.6,0.27477]
[1735994023631,0.27477,3640.7,3640.5,3.2078]
[1735994023632,0.27474,3641.1,3641.0,0.27474]
[1735994023933,1.171,3641.2,3640.5,3.2078]
[1735994024130,1.171,3641.2,3640.6,2.20824146]
[1735994024635,0.27474,3641.1,3640.7,0.27476]
[1735994024830,0.27474,3641.1,3641.0,0.27474]
[1735994025433,0.27472,3641.3,3641.2,0.27472]
[1735994025731,3.2078,3641.8,3640.9,5.41604146]
[1735994025939,0.27472,3641.4,3641.3,0.27472]
[1735994026236,0.27472,3641.3,3641.2,0.27472]
[1735994026835,1.1639,3641.7,3640.9,5.41604146]
[1735994027029,0.27472,3641.3,3641.2,0.27472]
[1735994029341,1.1639,3641.7,3641.2,0.0008]
[1735994029634,0.27472,3641.3,3641.2,0.0008]
[1735994030537,41.07472,3641.3,3641.2,0.0008]
[1735994031837,0.27472,3641.3,3641.2,0.0008]
[1735994037441,5.41604146,3641.4,3640.4,3.2078]
[1735994037637,0.27478,3640.5,3640.4,3.2078]
[1735994038934,2.3716,3640.7,3640.2,4.48142167]
[1735994039139,0.27479,3640.3,3640.2,4.20662167]
[1735994039538,2.3716,3640.7,3640.1,3.2078]
[1735994039839,0.2748,3640.2,3640.1,3.2078]
[1735994040536,1.177,3640.5,3640.1,3.2078]
[1735994040736,2.20824146,3640.3,3640.1,3.2078]
[1735994040945,0.2748,3640.2,3640.1,3.2078]
[1735994042444,0.27483,3639.8,3639.7,3.2078]
[1735994044547,2.20824146,3640.0,3639.5,4.20662167]
[1735994044849,0.27485,3639.6,3639.5,4.20662167]
[1735994045036,1.45185,3639.6,3639.5,4.20662167]
[1735994045444,2.67715,3639.6,3639.5,4.20662167]
[1735994045638,2.67715,3639.6,3638.6,1.2023]
[1735994045639,0.27488,3639.1,3639.0,4.2092532]
[1735994045845,2.48312146,3639.1,3639.0,4.2092532]
[1735994046048,48.28312146,3639.1,3639.0,1.1525832]
[1735994046246,0.2749,3638.9,3638.8,5.68456347]
[1735994046445,3.2078,3638.9,3638.6,8.34352915]
[1735994046643,2.48315146,3638.7,3638.6,8.34352915]
[1735994046845,2.48315146,3638.7,3638.6,5.89417915]
[1735994046846,7.48315146,3638.7,3638.6,5.89417915]
[1735994047046,7.48315146,3638.7,3637.7,1.1438]
[1735994047047,0.27498,3637.9,3637.7,1.1438]
[1735994047243,0.27498,3637.8,3637.7,1.1438]
[1735994048447,0.27501,3637.4,3637.3,1.2096]
[1735994049149,2.20824146,3637.5,3636.9,1.137]
[1735994049553,0.27502,3637.4,3637.1,0.27504]
[1735994049745,0.27499,3637.7,3637.3,0.27502]
[1735994050053,4.3848,3638.0,3637.5,3.4828]
[1735994050248,3.2078,3638.0,3637.5,3.2078]
[1735994050445,2.15364358,3638.1,3637.9,3.2078]
[1735994050646,2.15364358,3638.1,3638.0,1.42107]
[1735994050842,2.15364358,3638.1,3638.0,1.1461]
[1735994051060,0.27497,3638.0,3637.5,3.2078]
[1735994051348,2.15364358,3638.1,3637.7,0.27498]
[1735994051349,2.42861358,3638.1,3637.7,0.27498]
[1735994051654,0.27497,3638.0,3637.7,0.27498]
[1735994051857,2.20824146,3638.4,3637.7,0.27499]
[1735994051858,0.27496,3638.1,3637.7,0.27499]
[1735994052243,0.27496,3638.2,3637.7,0.27499]
[1735994052452,2.20824146,3638.4,3637.8,1.48588]
[1735994052651,2.20824146,3638.4,3637.8,1.2109]
[1735994052949,3.2078,3638.7,3637.8,1.2109]
[1735994053154,0.27498,3637.9,3637.8,1.2109]
[1735994053657,0.27497,3638.0,3637.8,1.2109]
[1735994053844,0.27498,3637.9,3637.8,1.2109]
[1735994055559,0.27497,3638.0,3637.8,1.2109]
[1735994056059,1.44096,3638.1,3637.8,1.48588]
[1735994056257,0.27498,3637.9,3637.8,1.2109]
[1735994059153,1.166,3638.4,3637.8,1.2109]
[1735994059459,0.27498,3637.9,3637.8,1.2117]
[1735994059657,1.166,3638.4,3637.8,1.2117]
[1735994059658,0.27497,3638.0,3637.8,1.2117]
[1735994060551,0.27496,3638.2,3638.0,0.27496]
[1735994060753,1.166,3638.4,3638.0,0.27496]
[1735994061050,1.166,3638.4,3637.8,1.2117]
[1735994061250,0.27498,3637.9,3637.8,1.2117]
[1735994061450,2.20824146,3638.3,3637.8,1.2117]
[1735994061751,0.27496,3638.2,3637.9,0.27497]
[1735994061949,2.20824146,3638.6,3637.8,1.2117]
[1735994062146,0.27496,3638.1,3637.9,0.27498]
[1735994062351,0.27496,3638.1,3637.8,1.2117]
[1735994062352,0.27497,3638.0,3637.8,1.48668]
[1735994062752,0.27496,3638.1,3637.9,0.27498]
[1735994063257,0.27494,3638.4,3637.8,1.48668]
[1735994063462,0.27494,3638.4,3637.8,1.2117]
[1735994063761,1.166,3638.5,3637.8,1.2117]
[1735994063948,2.20824146,3638.3,3637.8,1.2117]
[1735994064152,0.27498,3637.9,3637.8,1.2117]
[1735994064757,44.28278,3637.9,3637.8,0.0008]
[1735994065058,49.28278,3637.9,3637.8,0.0008]
[1735994065658,50.44878,3637.9,3637.8,0.0008]
[1735994066361,45.44878,3637.9,3637.8,0.0008]
[1735994066661,50.44878,3637.9,3637.8,0.0008]
[1735994066966,45.44878,3637.9,3637.8,0.0008]
[1735994068560,50.44878,3637.9,3637.8,0.0008]
[1735994068863,8.48278,3637.9,3637.8,0.0008]
[1735994069066,5.69102146,3637.9,3637.8,0.0008]
[1735994069357,3.64922146,3637.9,3637.8,0.0008]
[1735994071272,0.27506,3636.8,3636.7,2.2894]
[1735994072165,0.2751,3636.3,3636.2,1.149]
[1735994072352,0.2751,3636.3,3636.0,3.2078]
[1735994072353,2.20824146,3636.5,3636.1,1.1867]
[1735994072560,0.2751,3636.2,3636.1,1.1867]
[1735994072760,3.64934146,3636.2,3636.1,1.1867]
[1735994073862,0.27511,3636.1,3636.0,3.2078]
[1735994074957,0.27513,3635.8,3635.7,2.3323]
[1735994076059,2.20824146,3636.5,3635.7,2.3323]
[1735994076263,2.48333146,3636.5,3636.2,0.2751]
[1735994076467,0.2751,3636.3,3636.0,3.2078]
[1735994076666,0.2751,3636.3,3636.1,0.27511]
[1735994076852,0.27511,3636.2,3636.0,3.2078]
[1735994077358,2.20824146,3636.5,3636.0,3.2078]
[1735994077661,1.166,3636.6,3636.0,3.2078]
[1735994077662,0.27511,3636.1,3636.0,3.2078]
[1735994080364,2.20824146,3636.2,3635.7,2.3323]
[1735994080568,0.27513,3635.8,3635.7,2.3323]
[1735994081869,0.27513,3635.9,3635.7,2.60744]
[1735994082072,0.27513,3635.9,3635.7,2.3323]
[1735994082466,0.27513,3635.9,3635.7,2.60744]
[1735994083265,2.20824146,3636.2,3635.7,2.3323]
[1735994083467,0.27513,3635.9,3635.7,2.3323]
[1735994083662,0.27513,3635.8,3635.7,2.3323]
[1735994084773,1.43313,3635.8,3635.7,2.3323]
[1735994085076,1.43313,3635.8,3635.7,1.1379]
[1735994085670,2.20824146,3635.9,3635.5,3.2078]
[1735994085867,1.158,3636.4,3635.6,1.1893]
[1735994086072,0.2751,3636.3,3636.1,0.27511]